[Event "Kezmarok Chess Open 2022"]
[Site "Kezmarok"]
[Date "2022.10.01"]
[Round "9.2"]
[White "Bazakutsa, Svyatoslav"]
[Black "Jablonicky, Martin"]
[Result "0-1"]
[ECO "E71"]
[WhiteElo "2182"]
[BlackElo "2344"]
[Annotator "TA"]
[PlyCount "119"]
[EventDate "2022.09.24"]
[EventType "swiss"]
[EventCountry "SVK"]
[SourceTitle "playchess.com"]
[Source "ChessBase"]
[SourceQuality "1"]
[TimeControl "40/5400+30:1800+30"]

{[%evp 9,119,44,51,39,41,37,39,21,57,48,57,47,65,52,65,61,65,57,65,54,56,51,56,40,84,63,86,75,75,76,79,71,87,88,93,90,90,79,95,96,100,18,40,1,95,0,0,0,0,0,0,0,0,0,21,0,0,0,2,-48,-79,-66,-93,-159,-154,-193,-199,-207,-128,-151,-149,-755,-755,-745,-738,-723,-725,-712,-710,-702,-702,-1108,-1091,-3079,-3968,-29984,-29984,-29986,-29987,-29987,-29988,-29988,-29989,-29989,-29990,-29990,-29991,-29991,-29983,-29983,-29984,-29984,-29985,-29985,-29985,-29984,-29984,-29983,-29983,-29983,-29983,-29983]} 1. c4 g6 {[%emt 0:20:12]} 2. e4 {[%emt 0:00:08]} Bg7 {[%emt 0:00:09]} 3. d4 {[%emt 0:00:04]} d6 {[%emt 0:00:03]} 4. Nc3 {[%emt 0:00:09]} Nf6 {[%emt 0:01:11]} 5. h3 {[%emt 0:00:07]} e5 {[%emt 0:00:15]} 6. d5 {[%emt 0:00:07] E71: King's Indian: 4 e4 d6 5 h3.} a5 {[%emt 0:00:04]} 7. Be3 {[%emt 0:00:36]} Na6 {[%emt 0:00:05]} 8. g4 {[%emt 0:01:04][%cal Bg2g4,Bg4g5][%mdl 32] White is slightly better.} Nc5 {[%emt 0:00:15]} 9. f3 {[%emt 0:00:06]} h5 {[%emt 0:04:55]} 10. g5 {[%emt 0:00:30]} Nfd7 {[%emt 0:00:44]} 11. h4 {[%emt 0:01:15]} O-O {[%emt 0:01:14]} 12. Qd2 {[%emt 0:03:04] [#]} Nb6 $146 {[%emt 0:02:52]} ({Predecessor:} 12... c6 13. Rd1 a4 14. Nge2 Ra6 15. Ng3 f6 16. Be2 Rf7 17. Rc1 Nf8 18. Kf2 fxg5 19. hxg5 {1-0 (63) Kubicki,T (2443)-Mehlhorn,U (2380) ICCF email 2018}) 13. b3 {[%emt 0:02:57]} c6 {[%emt 0:05:04]} 14. Nh3 {[%emt 0:01:14]} cxd5 {[%emt 0:00:26]} 15. cxd5 {[%emt 0:00:17]} Bd7 {[%emt 0:00:31]} 16. Rc1 {[%emt 0:08:04]} Qe7 {[%emt 0:04:36]} 17. Nf2 {[%emt 0:02:39]} Rfc8 {[%emt 0:01:36]} 18. Nd3 {[%emt 0:10:39]} Bf8 {[%emt 0:03:16]} 19. Nxc5 (19. Kf2 {with more complications.} a4 20. Rb1 Qd8 21. Bxc5 dxc5 22. Nxe5 axb3 23. axb3 Bg7 24. Nxd7 Nxd7 25. Rc1) 19... dxc5 20. Nb5 {[%emt 0:14:03]} Bxb5 {[%emt 0:03:12]} 21. Bxb5 {[%emt 0:00:18]} Rc7 {[%emt 0:01:44]} 22. O-O {[%emt 0:05:49]} Nc8 {[%emt 0:03:58]} 23. Qf2 {[%emt 0:01:59]} b6 {[%emt 0:03:16]} 24. f4 {[%emt 0:09:02] Black must now prevent fxe5.} Nd6 {[%emt 0:05:10][%csl LRb5,LRe4]} 25. Bd3 {[%emt 0:00:31]} (25. Bc6 $1 $16 {[%cal Rc6a8]} Rxc6 26. dxc6) 25... Bg7 $11 {[%emt 0:04:11]} 26. f5 {[%emt 0:02:20] f6 is the strong threat.} Qe8 {[%emt 0:00:23]} (26... gxf5 $2 27. exf5 f6 28. Qg3 $18) (26... Qd7 $1 $11 {remains equal.}) 27. f6 {[%emt 0:20:15]} (27. Kg2 $16) 27... Bf8 {[%emt 0:00:04]} 28. Qe2 {[%emt 0:00:05]} Qd7 {[%emt 0:00:22]} 29. Bf2 {[%emt 0:00:38]} a4 {[%emt 0:04:53]} 30. Bg3 {[%emt 0:00:51]} Re8 {[%emt 0:04:28]} 31. Kh2 {[%emt 0:03:27]} Ra7 {[%emt 0:01:19][%cal Bc7a7,Ba7a5,Ba5a3][%mdl 32]} 32. Ra1 {[%emt 0:00:52]} b5 $1 {[%emt 0:01:41]} 33. Rfc1 {[%emt 0:00:47]} Ra5 {[%emt 0:02:10]} 34. Rab1 {[%emt 0:01:23]} (34. Rxc5 Nxe4 $1 35. Qxe4 (35. Rxb5 $2 Nc3 $19) (35. Bxb5 $2 Rxb5 36. Qxb5 Nxc5 $19) 35... Bxc5 $17) (34. b4 $11 cxb4 35. Rab1) 34... axb3 $15 {[%emt 0:02:45]} 35. axb3 {[%emt 0:00:11]} Ra3 {[%emt 0:02:33]} 36. Bc2 {[%emt 0:02:47] [#]} (36. Qb2 $2 c4 $1 37. Bc2 (37. Qxa3 $2 cxd3 38. b4 d2 $19) 37... b4 $19) (36. Rb2 $142) 36... c4 $1 $17 {[%emt 0:03:18]} 37. bxc4 {[%emt 0:00:58]} (37. Ra1 Rea8 38. Rxa3 (38. Bxe5 $2 cxb3 39. Bxb3 Qe8 $19) 38... Rxa3 39. bxc4 (39. Bxe5 $2 cxb3 40. Bb1 Nc4 $19) 39... bxc4 $15) 37... bxc4 {[%emt 0:01:48]} 38. Ra1 {[%emt 0:02:59]} ({Worse is} 38. Qg2 Nb5 39. Bd1 Nc3 $15) 38... Rea8 {[%emt 0:01:09]} ({But not} 38... Rc3 39. Ba4 Qxa4 40. Rxa4 $16) 39. Rxa3 {[%emt 0:01:21]} Rxa3 {[%emt 0:00:04]} 40. Rb1 $2 {[%emt 0:02:44][%mdl 8192] Loses the game.} (40. Rg1 $17) 40... Nb5 $19 {[%emt 0:01:00]} 41. Qg2 {[%emt 0:32:19]} Nd4 {[%emt 0:30:19] And now ...Ra2 would win.} 42. Bd1 {[%emt 0:01:35]} c3 {[%emt 0:06:15]} 43. Rc1 {[%emt 0:00:00]} Qa7 {[%emt 0:00:00] Hoping for ...Ra2.} 44. Bf2 {[%emt 0:00:00]} Qc7 {[%emt 0:00:00]} 45. Bc2 {[%emt 0:00:00]} Ra2 {[%emt 0:00:00]} 46. Be3 {[%emt 0:00:00]} Ba3 {[%emt 0:00:00]} 47. d6 {[%emt 0:00:00]} Qxd6 {[%emt 0:00:00] Black mates.} 48. Rd1 {[%emt 0:00:00]} Rxc2 {[%emt 0:00:00]} 49. Qxc2 {[%emt 0:00:00]} Nxc2 {[%emt 0:00:00]} 50. Rxd6 {[%emt 0:00:00]} Bxd6 {[%emt 0:00:00]} 51. Bf2 {[%emt 0:00:00]} Nd4 {[%emt 0:00:00]} 52. Kg2 {[%emt 0:00:00]} c2 {[%emt 0:00:00]} 53. Be3 {[%emt 0:00:00]} Ba3 {[%emt 0:00:00]} 54. Kf2 {[%emt 0:00:00]} c1=Q {[%emt 0:00:00]} 55. Bxc1 {[%emt 0:00:00]} Bxc1 {[%emt 0:00:00]} 56. Kg2 {[%emt 0:00:00]} Bd2 {[%emt 0:00:00]} 57. Kf2 {[%emt 0:00:00]} Kf8 {[%emt 0:00:00]} 58. Kf1 {[%emt 0:00:00]} Nf3 {[%emt 0:00:00]} 59. Ke2 {[%emt 0:00:00]} Nxg5 {[%emt 0:00:00]} 60. Kxd2 {Weighted Error Value: White=0.47/Black=0.06 (flawless)} 0-1

[Event "Kezmarok Chess Open 2022"]
[Site "Kezmarok"]
[Date "2022.10.01"]
[Round "9.3"]
[White "Demeter, Peter"]
[Black "Berezjuk, Sergej"]
[Result "0-1"]
[ECO "A06"]
[WhiteElo "2067"]
[BlackElo "2382"]
[Annotator "TA"]
[PlyCount "132"]
[EventDate "2022.09.24"]
[EventType "swiss"]
[EventCountry "SVK"]
[SourceTitle "playchess.com"]
[Source "ChessBase"]
[SourceQuality "1"]
[TimeControl "40/5400+30:1800+30"]

{[%evp 9,132,-1,16,3,53,10,47,11,23,5,12,25,26,19,70,-7,45,42,42,28,36,42,72,70,50,12,35,39,57,13,46,-30,-43,-21,0,-41,0,-15,0,0,0,0,0,0,0,0,0,0,0,0,19,0,0,0,0,0,25,0,0,0,0,0,0,0,0,0,0,0,0,0,0,0,0,-110,-114,-166,-51,-73,-56,-42,-64,-306,-12,-209,-208,-222,-221,-221,-221,-213,-213,-364,-364,-364,-364,-364,-364,-364,-356,-252,-203,-987,-1050,-936,-798,-1097,-337,-342,-249,-193,0,-1093,-1076,-880,-831,-29939,-29960,-29979,-29978,-29977,-29978,-29977,-29974,-29997,-29998]} 1. Nf3 {[%emt 0:00:05]} d5 {[%emt 0:05:35]} 2. g3 {[%emt 0:00:17]} c6 {[%emt 0:00:39]} 3. Bg2 {[%emt 0:00:10]} Bg4 {[%emt 0:00:22]} 4. h3 {[%emt 0:00:28]} Bh5 {[%emt 0:00:28]} 5. d3 {[%emt 0:00:39]} Nd7 {[%emt 0:01:20]} 6. e4 {[%emt 0:03:07] A07: Réti Opening: New York and Capablanca Systems.} e5 {[%emt 0:03:45]} (6... dxe4 $11 7. dxe4 Ngf6) 7. O-O {[%emt 0:03:45]} Bd6 {[%emt 0:01:06]} 8. Nc3 {[%emt 0:03:45] White is slightly better.} d4 {[%emt 0:00:52]} 9. Ne2 {[%emt 0:00:17]} f6 {[%emt 0:01:43] [#]} 10. c3 $146 {[%emt 0:05:07]} ({Predecessor:} 10. Nh4 Ne7 11. c3 c5 12. Nf5 Nxf5 13. exf5 Qc7 14. c4 Bf7 15. a3 g6 16. fxg6 hxg6 {0-1 (26) Flesch,J-Lein,A Budapest 1963}) 10... c5 {[%emt 0:01:31]} 11. Nh4 {[%emt 0:01:08]} (11. b4 {seems wilder.} dxc3 12. bxc5 Bxc5 13. d4) 11... Bf7 {[%emt 0:07:40]} (11... Ne7 $11) 12. f4 {[%emt 0:13:30]} (12. b4 $14) 12... g6 {[%emt 0:02:30]} ({Black should try} 12... Ne7 $11) 13. cxd4 {[%emt 0:04:44]} cxd4 {[%emt 0:00:51]} 14. Kh1 {[%emt 0:03:31]} (14. Qa4 {is interesting.} h6 15. Bd2 a6 16. fxe5 fxe5 17. Rac1) 14... Ne7 {[%emt 0:07:51]} 15. fxe5 {[%emt 0:10:07]} Bxe5 {[%emt 0:13:49]} 16. Nf3 {[%emt 0:01:20]} Nc6 {[%emt 0:03:34]} 17. Nxe5 {[%emt 0:03:20]} Ndxe5 {[%emt 0:04:40]} 18. Bh6 {[%emt 0:02:04]} Rg8 {[%emt 0:02:31] Against Bg7} 19. Bf4 {[%emt 0:01:45][%cal Ob2b4]} (19. Nf4 {is more complex.} g5 20. Nd5 Rg6 21. Rxf6 Rxf6 22. Bxg5 Rf1+ 23. Qxf1 Qxg5 24. Nc7+) 19... Be6 {[%emt 0:00:54]} 20. Bxe5 {[%emt 0:01:51]} (20. g4 $14) 20... fxe5 $11 {[%emt 0:00:40]} 21. Ng1 {[%emt 0:07:56][%cal Ob2b4]} Qd7 {[%emt 0:02:55]} 22. Qa4 {[%emt 0:02:32]} O-O-O {[%emt 0:04:30]} 23. b4 {[%emt 0:05:29]} Kb8 {[%emt 0:02:49]} 24. b5 {[%emt 0:00:38]} Ne7 {[%emt 0:00:05]} 25. Nf3 {[%emt 0:00:35]} Nc8 {[%emt 0:09:06]} 26. Kh2 Qd6 (26... Nb6 27. Qb4 $16) 27. Ng5 {[%emt 0:05:04]} h6 {[%emt 0:05:00]} 28. Nf7 {[%emt 0:01:17]} Bxf7 {[%emt 0:00:13]} 29. Rxf7 {[%emt 0:00:04]} Rdf8 {[%emt 0:06:38]} 30. Raf1 {[%emt 0:00:11]} Rxf7 {[%emt 0:02:35]} 31. Rxf7 {[%emt 0:00:06]} Rf8 {[%emt 0:00:04]} 32. Qc4 {[%emt 0:01:22]} g5 {[%emt 0:01:14]} 33. Rxf8 {[%emt 0:01:30]} Qxf8 {[%emt 0:00:02][%mdl 4096] Endgame KQB-KQN} 34. Qe6 {[%emt 0:01:07]} Qd6 {[%emt 0:01:23]} 35. Qe8 {[%emt 0:00:08]} Kc7 {[%emt 0:00:19]} 36. Bf3 {[%emt 0:00:45]} Ne7 {[%emt 0:01:04]} 37. Bg4 {[%emt 0:00:51]} Kb6 {[%emt 0:00:39]} 38. Bd7 {[%emt 0:01:07]} Ng6 {[%emt 0:06:06]} 39. Qd8+ {[%emt 0:05:29]} Qc7 {[%emt 0:01:39]} 40. Qf6+ {[%emt 0:02:37]} Ka5 {[%emt 0:00:05]} 41. Qxg6 {[%emt 0:35:08]} (41. Be6 $11) 41... Qxd7 $17 {[%emt 0:09:11]} 42. Qxh6 {[%emt 0:00:00]} Qxb5 {[%emt 0:00:42]} (42... Qf7 $1 $19 {[%cal Rf7f2]} 43. Kg1 Qxa2 44. Qxg5 Qb1+ 45. Kf2 Qxd3 46. Qxe5 Qe3+ 47. Kf1 b6) 43. Qxg5 $15 {[%emt 0:00:00] Qd2+ is the strong threat.} Qxd3 {[%emt 0:00:18] White must now prevent ...Qc2+.} 44. Qxe5+ $11 {[%emt 0:00:00] KQ-KQ} Ka4 {[%emt 0:00:09]} 45. h4 $2 {[%emt 0:00:00]} (45. Qc7 $15) 45... b5 $2 {[%emt 0:06:18]} (45... Qc2+ $19 46. Kh3 d3 47. Qd4+ Ka3 48. Qxa7+ Kb2 49. Qxb7+ Kc1) 46. h5 $2 {[%emt 0:00:00]} (46. Qf4 $1 $11) 46... Qc2+ $1 $19 {[%emt 0:01:39][%mdl 1024] Black has strong compensation.} 47. Kh3 d3 {[%emt 0:00:18] aiming for ...d2.} 48. Qd4+ {[%emt 0:00:00] [#]} Ka3 $1 {[%emt 0:04:36] Hoping for ...d2.} 49. h6 {[%emt 0:00:00]} d2 {[%emt 0:00:26]} 50. h7 $2 {[%emt 0:00:00]} (50. Qxa7+ {was the only defense.} Kb2 51. Qd4+ Kxa2 52. h7 (52. Qd5+ $2 Ka3 $19)) 50... d1=Q {[%emt 0:00:41][%cal Rd1h5] The board is on fire.} 51. h8=Q {[%emt 0:00:00] Prevents Qh5+.} ({But not} 51. Qxa7+ $2 Qa4 52. Qe3+ Kb4 $19) 51... Qh1+ {[%emt 0:00:53]} ({Stronger than} 51... Kxa2 52. Qg8+ (52. Qxa7+ Kb3 $11) 52... Kb1 53. Qxd1+ Qxd1 54. Qd5 $11) 52. Kg4 {[%emt 0:00:00]} Qhxe4+ {[%emt 0:00:10]} 53. Qxe4 {[%emt 0:00:00]} Qxe4+ {[%emt 0:00:01] KQ-KQ} 54. Kg5 {[%emt 0:00:00]} Kxa2 {[%emt 0:01:27]} 55. Qb8 $2 {[%emt 0:00:00]} (55. Qc3) 55... Qd5+ {[%emt 0:00:33]} 56. Kh6 {[%emt 0:00:00]} a5 {[%emt 0:00:52]} 57. g4 {[%emt 0:00:00]} Qe6+ $2 {[%emt 0:00:50]} (57... b4 {And now ...b3 would win.} 58. Qf4 Qc6+ 59. Kg7 Qd7+ 60. Kg8 b3) 58. Kh5 {[%emt 0:00:00]} Qf7+ {[%emt 0:01:21]} 59. Kh6 {[%emt 0:00:00] [#]} Qe6+ $2 {[%emt 0:01:37]} (59... Qf6+ $1 $19 60. Kh5 Qf7+ 61. Kh6 Qe6+ 62. Kh5 Qf7+) 60. Kh7 $2 {[%emt 0:00:00][%mdl 8192]} (60. Kh5 $11) 60... Qd7+ {[%emt 0:00:27]} 61. Kh8 {[%emt 0:00:00]} b4 {[%emt 0:00:55]} 62. g5 {[%emt 0:00:00]} b3 {[%emt 0:01:31] Black mates.} 63. g6 {[%emt 0:00:00]} b2 {[%emt 0:01:26]} 64. Qh2 {[%emt 0:00:00]} Qe8+ {[%emt 0:00:43]} 65. Kh7 {[%emt 0:00:00]} Ka1 {[%emt 0:00:39]} 66. g7 {[%emt 0:00:09]} b1=Q+ {[%emt 0:00:09] Weighted Error Value: White=0.57/Black=0.33} 0-1

[Event "Kezmarok Chess Open 2022"]
[Site "Kezmarok"]
[Date "2022.10.01"]
[Round "9.4"]
[White "Manik, Mikulas"]
[Black "Hagarova, Zuzana"]
[Result "1/2-1/2"]
[ECO "B31"]
[WhiteElo "2362"]
[BlackElo "2287"]
[Annotator "TA"]
[PlyCount "37"]
[EventDate "2022.09.24"]
[EventType "swiss"]
[EventCountry "SVK"]
[SourceTitle "playchess.com"]
[Source "ChessBase"]
[SourceQuality "1"]
[TimeControl "40/5400+30:1800+30"]

{[%evp 12,37,20,11,24,13,24,0,0,0,0,10,0,12,25,25,79,96,96,76,60,18,118,36,70,57,50,29]} 1. e4 {[%emt 0:00:03]} c5 {[%emt 0:00:04]} 2. Nf3 {[%emt 0:00:07]} Nc6 {[%emt 0:00:04]} 3. Bb5 {[%emt 0:00:05]} g6 {[%emt 0:00:22]} 4. Bxc6 {[%emt 0:00:07]} dxc6 {[%emt 0:00:21]} 5. h3 {[%emt 0:00:21]} Bg7 {[%emt 0:00:33]} 6. d3 {[%emt 0:00:25]} Nf6 {[%emt 0:01:31]} 7. O-O {[%emt 0:04:39]} Nd7 {[%emt 0:03:02] B31: Sicilian: 2...Nc6 3 Bb5 g6.} 8. Nc3 {[%emt 0:03:11]} Nf8 {[%emt 0:06:22]} 9. Nh2 {[%emt 0:17:58]} e5 {[%emt 0:06:44] The position is equal.} 10. f4 {[%emt 0:01:26]} exf4 {[%emt 0:03:47]} 11. Bxf4 {[%emt 0:00:25]} Ne6 {[%emt 0:00:48]} 12. Be3 {[%emt 0:02:26] [#]} Qe7 $146 {[%emt 0:07:11]} ({Predecessor:} 12... Nd4 13. Nf3 h6 14. Qd2 Be6 15. Rab1 a5 16. Ne2 Bxa2 17. Ra1 Be6 18. Nexd4 cxd4 {0-1 (39) Lopez del Alamo,A (2284)-Sanal,V (2563) Chess.com INT 2021}) 13. Qd2 {[%emt 0:02:07]} h6 {[%emt 0:04:59]} (13... Nd4 $11) 14. Rae1 $16 {[%emt 0:06:42][%cal Oe4e5] White is more active.} Bd7 {[%emt 0:04:57]} 15. Qf2 {[%emt 0:04:53][%cal Oe4e5]} b6 {[%emt 0:05:05]} 16. Kh1 {[%emt 0:05:58]} Ng5 {[%emt 0:10:27]} (16... O-O $11 {keeps the balance.}) 17. e5 {[%emt 0:15:07]} (17. Bxg5 $16 hxg5 18. Nd5 cxd5 19. exd5) 17... Be6 {[%emt 0:10:06]} 18. Nf3 {[%emt 0:09:46]} O-O-O {[%emt 0:06:50]} 19. Qg3 {[%emt 0:04:29] Weighted Error Value: White=0.18 (very precise) /Black=0.20 (precise)} 1/2-1/2

[Event "Kezmarok Chess Open 2022"]
[Site "Kezmarok"]
[Date "2022.10.01"]
[Round "9.5"]
[White "Sosovickova, Jana"]
[Black "Walter, Ema"]
[Result "1/2-1/2"]
[ECO "C60"]
[WhiteElo "2039"]
[BlackElo "2062"]
[Annotator "TA"]
[PlyCount "96"]
[EventDate "2022.09.24"]
[EventType "swiss"]
[EventCountry "SVK"]
[SourceTitle "playchess.com"]
[Source "ChessBase"]
[SourceQuality "1"]
[TimeControl "40/5400+30:1800+30"]

{[%evp 9,96,32,29,25,27,29,29,33,32,1,1,0,35,-9,-18,-35,-23,-62,-56,-64,-58,-75,-34,-55,-29,-46,-44,-39,-53,-73,-31,-28,0,0,0,0,0,-13,5,-13,0,-33,0,-73,-82,-74,-71,-82,-69,-63,-65,-73,-41,-85,-88,-89,-58,-89,-88,-126,8,8,116,89,120,-298,-291,-285,-8,-8,-8,-8,-8,-8,-8,-93,-8,-8,-8,-8,-8,-8,0,0,0,0,0,0,0]} 1. e4 e5 2. Nf3 Nc6 3. Bb5 Nge7 4. Nc3 Ng6 5. d4 exd4 6. Nxd4 {C60: Ruy Lopez: Unusual Black 3rd moves and 3...g6.} Nxd4 $1 {[%mdl 4] now scores much better than the old 6...Bc5.} 7. Qxd4 {[%cal Oh2h4]} c6 8. Be2 {White has an edge.} Qb6 9. Qxb6 axb6 10. Be3 Bc5 {[#]} 11. Nd1 $146 (11. Bxc5 bxc5 12. a4 b5 13. O-O b4 14. Nd1 d6 15. Ne3 Ke7 16. f4 Rd8 17. Nc4) ({Predecessor:} 11. Bxc5 bxc5 12. a4 b5 13. O-O b4 14. Nd1 d6 15. Ne3 Ke7 16. f4 Rd8 17. Nc4 {0-1 (46) Morkunas,G (1967)-Andersen,M (2574) Katowice 2021}) 11... Kd8 12. O-O Re8 13. Bf3 Kc7 14. g3 d6 15. Bg2 Be6 (15... f5 $5 {[%cal Rf5e4]}) 16. a3 Ne7 17. Rc1 f5 18. Bxc5 bxc5 19. Nc3 {[%cal Bd1c3,Bc3e2,Be2d4][%mdl 32]} b5 20. Rfe1 b4 21. axb4 cxb4 22. Ne2 fxe4 23. Nd4 Bd5 24. Bxe4 Kd7 25. c4 bxc3 26. Rxc3 (26. bxc3 $11 c5 27. Nb5 Bxe4 28. Rxe4) 26... c5 27. Nf3 Bxe4 28. Rxe4 Nd5 $36 {[%csl LRc3,LRe4][%mdl 2048] Black is pushing.} 29. Rxe8 Rxe8 $15 {[%mdl 4096] Endgame KRN-KRN} ({Much less strong is} 29... Kxe8 30. Rd3 Nf6 31. Rxd6 $16) 30. Ra3 Kc6 31. Ra7 Nc7 32. Kf1 h6 33. Nd2 d5 34. Nb3 Rb8 {[#]} ({Better is} 34... Kb6 $17 35. Ra1 g5) 35. Nxc5 $1 $11 {[%cal Oa7c7] Strongly threatening Rxc7+!} Nb5 (35... Kb6 $2 36. Rxc7 $1 {[%mdl 512]} Re8 37. Na6 $1 $18 {[%mdl 512]} (37. Rxg7 Kxc5 38. Rc7+ Kd6 $18)) (35... Rxb2 $11 {keeps the balance.} 36. Nd3 Rd2) (35... Kxc5 36. Rxc7+) 36. Na6 $16 {White is more active.} Rb6 37. Rxg7 {[%mdl 8192]} (37. Nb4+ $1 $16 {is necessary to keep the advantage.} Kc5 38. Ra4) 37... Rxa6 {KRN-KR} 38. Rg6+ {[#]} Kb7 $2 (38... Nd6 $1 $19 {...Rb6 is the strong threat.} 39. Rxh6 Rb6) 39. Rxa6 $11 Kxa6 {KN-KP} 40. Ke2 Kb6 41. Kd3 {Prevents Nd4.} Kc5 42. h4 {[#]} (42. g4 $11 {remains equal.}) 42... Kd6 (42... Nc7 $1 $17 {White must now prevent ...d4.} 43. b3 d4) 43. g4 {The position is equal.} Ke5 44. g5 hxg5 45. hxg5 Kf5 46. f4 Kg6 (46... Kxf4 $2 47. g6 $18) 47. Ke3 Kf5 48. Kd3 Kg6 {Weighted Error Value: White=0.34/Black=0.35} (48... Kxf4 $2 49. g6 $18) 1/2-1/2

[Event "Kezmarok Chess Open 2022"]
[Site "Kezmarok"]
[Date "2022.10.01"]
[Round "9.6"]
[White "Elias, David"]
[Black "Janik, Marek Tobias"]
[Result "1/2-1/2"]
[ECO "A04"]
[WhiteElo "1988"]
[BlackElo "1823"]
[Annotator "TA"]
[PlyCount "71"]
[EventDate "2022.09.24"]
[EventType "swiss"]
[EventCountry "SVK"]
[SourceTitle "playchess.com"]
[Source "ChessBase"]
[SourceQuality "1"]
[TimeControl "40/5400+30:1800+30"]

{[%evp 12,71,0,0,20,-1,14,-7,0,-15,-10,0,20,-6,-12,-16,29,18,36,-5,-8,-12,4,8,19,15,26,20,19,19,19,42,71,37,184,0,0,0,0,11,7,-41,-11,-75,0,-73,9,29,11,-54,-63,-110,-128,-112,0,0,0,0,0,0,0,0]} 1. Nf3 {[%emt 0:00:31]} c5 {[%emt 0:00:24]} 2. c4 {[%emt 0:00:18]} Nc6 {[%emt 0:00:04]} 3. g3 {[%emt 0:00:12]} g6 {[%emt 0:00:06]} 4. Bg2 {[%emt 0:00:25]} Bg7 {[%emt 0:00:09]} 5. O-O {[%emt 0:00:42]} e5 {[%emt 0:00:09]} 6. d3 {[%emt 0:00:47]} Nge7 {[%emt 0:00:18]} 7. Nc3 {[%emt 0:01:13]} h6 {[%emt 0:01:23] A37: Symmetrical English vs ...g6: 4 Bg2 Bg7 5 Nf3.} 8. Be3 {[%emt 0:02:08]} d6 {[%emt 0:00:05]} 9. Qc1 {[%emt 0:00:05]} f5 {[%emt 0:07:54] [#]} 10. h4 $146 {[%emt 0:01:11]} ({Predecessor:} 10. Ne1 Be6 11. Rb1 b6 12. Nc2 Rc8 13. Bd2 g5 14. f4 gxf4 15. gxf4 Ng6 16. Nd5 {0-1 (29) Ivaschenko,V (2128)-Anoshkin,A (2424) Rostov on Don 2008}) 10... Kf8 {[%emt 0:05:23]} 11. a3 {[%emt 0:08:52][%cal Ob2b4]} Kg8 {[%emt 0:01:32]} 12. Rb1 {[%emt 0:02:40]} a5 {[%emt 0:00:03]} 13. Bd2 {[%emt 0:10:32]} Qd7 {[%emt 0:19:07]} 14. Ne1 {[%emt 0:02:29]} a4 {[%emt 0:03:36]} 15. b3 {[%emt 0:07:18]} axb3 {[%emt 0:00:25]} 16. Rxb3 {[%emt 0:00:03]} Nd4 {[%emt 0:00:33]} 17. Rb1 {[%emt 0:02:17]} Kh7 {[%emt 0:02:09]} 18. e3 {[%emt 0:19:16]} Ne6 {[%emt 0:00:43]} 19. Qb2 {[%emt 0:01:30]} Nc6 {[%emt 0:02:46]} 20. Nd5 {[%emt 0:01:19] [#] And now Nb6 would win.} Qf7 {[%emt 0:04:41]} 21. Nb6 {[%emt 0:02:02]} Rb8 {[%emt 0:03:32]} 22. Bc3 {[%emt 0:01:38] White is more active.} f4 {[%emt 0:04:01]} (22... Nc7 $1 $14) 23. gxf4 $2 {[%emt 0:03:36]} (23. Be4 $18) 23... exf4 $11 {[%emt 0:00:04]} 24. Bxg7 {[%emt 0:01:03]} Nxg7 {[%emt 0:00:10]} 25. Nd5 {[%emt 0:00:56] Black must now prevent Nf6+.} Nh5 {[%emt 0:03:44] Against Nf6+} 26. Qb6 {[%emt 0:03:27]} (26. Nxf4 $11 {was preferrable.} Nxf4 27. exf4) 26... Be6 {[%emt 0:04:33]} (26... Rd8) 27. Nf3 {[%emt 0:06:28]} (27. Nxf4 $11 Nxf4 28. exf4) 27... Rhd8 {[%emt 0:06:48]} (27... Bxd5 $2 28. cxd5 Ne5 29. Nxe5 (29. Qxd6 Nxd3 30. e4 Nf6 $16) 29... dxe5 30. Qxc5 $16) ({Black should try} 27... Rhg8 $17) 28. Nc7 {[%emt 0:03:16]} (28. d4 $11) 28... Rdc8 {[%emt 0:04:00]} (28... Bc8 $17) 29. Nxe6 {[%emt 0:03:06]} Qxe6 {[%emt 0:00:08]} 30. Rbe1 {[%emt 0:06:17]} ({White should play} 30. d4 $11 Qe7 31. Rfe1) 30... Qg4 $15 {[%emt 0:06:09]} 31. d4 {[%emt 0:04:48]} (31. a4 $1 $15) 31... fxe3 $17 {[%emt 0:09:31]} 32. fxe3 {[%emt 0:01:05] [#]} Ng3 {[%emt 0:00:33]} ({Better is} 32... cxd4 $1 $17 {Hoping for ...d3.} 33. Nxd4 Ne5 34. Qxd6 Qg3 35. Qe7+ Kh8) 33. Nh2 $11 {[%emt 0:01:34] The position is equal.} Ne2+ {[%emt 0:03:00] Pair of Knights!} 34. Kh1 {[%emt 0:00:45] The board is on fire.} Ng3+ {[%emt 0:00:23]} 35. Kg1 {[%emt 0:00:06]} Ne2+ {[%emt 0:00:04]} 36. Kh1 {[%emt 0:02:15] Weighted Error Value: White=0.32/Black=0.29 (precise)} 1/2-1/2